fUSD/lending_fUSD_20240406
["ID","MTS","AMOUNT","RATE_DAILY","PERIOD"]
[321672188,1712369438297,-353.86018394,0.00024899,2]
[321672189,1712369438306,-503.24851882,0.00024899,2]
[321672190,1712369438316,-308.59283132,0.00024899,2]
[321672191,1712369438325,-500.0,0.00024899,2]
[321672192,1712369438335,-500.0,0.00024899,2]
[321672193,1712369438345,-500.0,0.00024899,2]
[321672194,1712369438354,-500.0,0.00024899,2]
[321672195,1712369438363,-500.0,0.00024899,2]
[321672196,1712369438373,-500.0,0.00024899,2]
[321672197,1712369438382,-500.0,0.00024899,2]
[321672198,1712369438391,-363.85362903,0.00024899,2]
[321672199,1712369438400,-500.0,0.00024899,2]
[321672200,1712369438410,-500.0,0.00024899,2]
[321672201,1712369438419,-500.0,0.00024899,2]
[321672202,1712369438429,-953.86,0.00024899,2]
[321672203,1712369438445,-953.86,0.00024899,2]
[321672204,1712369438458,-953.86,0.00024899,2]
[321672205,1712369438468,-500.0,0.00024899,2]
[321672206,1712369438477,-319.86027235,0.00024899,2]
[321672207,1712369438487,-500.0,0.00024899,2]
[321672208,1712369438496,-239.24358766,0.00024899,2]
[321672209,1712369438505,-500.0,0.00024899,2]
[321672210,1712369438515,-500.0,0.00024899,2]
[321672211,1712369438524,-500.0,0.00024899,2]
[321672212,1712369438534,-500.0,0.00024899,2]
[321672213,1712369438544,-340.69480199,0.00024899,2]
[321672214,1712369438554,-272.57040625,0.00024899,2]
[321672215,1712369438564,-500.0,0.00024899,2]
[321672216,1712369438576,-500.0,0.00024899,2]
[321672217,1712369438586,-500.0,0.00024899,2]
[321672218,1712369438596,-1258.4381,0.000249,2]
[321672219,1712369438604,-1061.5679,0.000249,2]
[321672220,1712369438616,-171.78036031,0.000249,2]
[321672221,1712369438625,-158.62772887,0.00024996,2]
[321672222,1712369438634,-500.0,0.00024996,2]
[321672223,1712369438644,-520.00170031,0.00024996,2]
[321672224,1712369438654,-522.16210768,0.00024996,2]
[321672225,1712369438664,-500.0,0.00024996,2]
[321672226,1712369438673,-630.47082429,0.00024996,2]
[321672227,1712369438684,-517.27995016,0.00024996,2]
[321672228,1712369438694,-516.72176236,0.00024996,2]
[321672229,1712369438704,-517.48757604,0.00024996,2]
[321672230,1712369438714,-517.42179136,0.00024996,2]
[321672231,1712369438723,-517.43124507,0.00024996,2]
[321672232,1712369438733,-517.99796269,0.00024996,2]
[321672233,1712369438743,-529.66840473,0.00024996,2]
[321672234,1712369438752,-568.60294991,0.00024996,2]
[321672235,1712369438761,-521.54313506,0.00024996,2]
[321672236,1712369438771,-500.0,0.00024996,2]
[321672237,1712369438780,-504.04079952,0.00024996,2]
[321672238,1712369438790,-517.51438924,0.00024996,2]
[321672239,1712369438800,-532.30493299,0.00024996,2]
[321672240,1712369438811,-564.24407275,0.00024996,2]
[321672241,1712369438821,-512.18828698,0.00024996,2]
[321672242,1712369438831,-500.0,0.00024996,2]
[321672243,1712369438841,-513.44824149,0.00024996,2]
[321672244,1712369438852,-559.1532797,0.00024996,2]
[321672245,1712369438862,-513.53932583,0.00024996,2]
[321672246,1712369438872,-311.41819,0.00024996,2]
[321672247,1712369438882,-531.12558258,0.00024996,2]
[321672248,1712369438892,-500.0,0.00024996,2]
[321672249,1712369438901,-510.27959837,0.00024996,2]
[321672250,1712369438911,-538.95120062,0.00024996,2]
[321672251,1712369438923,-519.88307723,0.00024996,2]
[321672252,1712369438932,-500.0,0.00024996,2]
[321672253,1712369438942,-500.0,0.00024996,2]
[321672254,1712369438951,-238.83041997,0.00024996,2]
[321672255,1712369438961,-500.0,0.00024996,2]
[321672256,1712369438970,-500.0,0.00024996,2]
[321672257,1712369438979,-500.0,0.00024996,2]
[321672258,1712369438989,-500.0,0.00024996,2]
[321672259,1712369438998,-953.86,0.00024996,2]
[321672260,1712369439007,-500.0,0.00024996,2]
[321672261,1712369439018,-336.45721855,0.00024996,2]
[321672262,1712369439027,-500.0,0.00024996,2]
[321672263,1712369439037,-500.0,0.00024996,2]
[321672264,1712369439047,-500.0,0.00024996,2]
[321672265,1712369439055,-500.0,0.00024996,2]
[321672266,1712369439064,-199.6106364,0.00024996,2]
[321672267,1712369439074,-500.0,0.00024996,2]
[321672268,1712369439084,-514.85146372,0.00024996,2]
[321672269,1712369439093,-524.04467494,0.00024996,2]
[321672270,1712369439102,-500.0,0.00024996,2]
[321672271,1712369439111,-500.0,0.00024996,2]
[321672272,1712369439122,-529.40479207,0.00024996,2]
[321672273,1712369439132,-505.03964547,0.00024996,2]
[321672274,1712369439141,-508.03981978,0.00024996,2]
[321672275,1712369439150,-418.29782823,0.00024996,2]
[321672276,1712369439160,-500.0,0.00024996,2]
[321672277,1712369439171,-500.0,0.00024996,2]
[321672278,1712369439181,-500.0,0.00024996,2]
[321672279,1712369439191,-512.69942998,0.00024996,2]
[321672280,1712369439202,-520.21287322,0.00024996,2]
[321672281,1712369439211,-510.58393104,0.00024996,2]
[321672282,1712369439221,-512.91241241,0.00024996,2]
[321672283,1712369439230,-515.71996571,0.00024996,2]
[321672284,1712369439240,-508.81315406,0.00024996,2]
[321672285,1712369439249,-524.29278363,0.00024997,2]
[321672286,1712369439258,-393.36466155,0.00024997,2]
[321672287,1712369439489,-190.7425493,0.00024997,2]
[321672288,1712369439498,-500.0,0.00024997,2]
[321672289,1712369439508,-340.0,0.00024997,2]
[321672290,1712369439518,-1725.8014282,0.00024997,2]
[321672291,1712369439527,-250.79486294,0.00024997,2]
[321672292,1712369439536,-8649.8760356,0.00024997,2]
[321672293,1712369439545,-625.52013295,0.00024997,2]
[321672294,1712369439555,-10401.809026,0.00024997,2]
[321672295,1712369439564,-223599.5865089,0.00024997,2]
[321672296,1712369439575,-618.02158185,0.00024997,2]
[321672297,1712369439586,-500.0,0.00024997,2]
[321672299,1712369439595,-500.0,0.00024997,2]
[321672301,1712369439604,-500.0,0.00024997,2]
[321672303,1712369439614,-500.0,0.00024997,2]
[321672304,1712369439624,-500.0,0.00024997,2]
[321672305,1712369439635,-500.0,0.00024997,2]
[321672306,1712369439646,-953.86,0.00024997,2]
[321672307,1712369439656,-953.86,0.00024997,2]
[321672308,1712369439665,-953.86,0.00024997,2]
[321672309,1712369439674,-500.0,0.00024997,2]
[321672310,1712369439683,-500.0,0.00024997,2]
[321672311,1712369439692,-500.0,0.00024997,2]
[321672312,1712369439701,-500.0,0.00024997,2]
[321672313,1712369439711,-500.0,0.00024997,2]
[321672314,1712369439720,-500.0,0.00024997,2]
[321672315,1712369439729,-3083.5745857,0.00024997,2]
[321672316,1712369439738,-500.0,0.00024997,2]
[321672317,1712369439747,-500.0,0.00024997,2]
[321672318,1712369439756,-500.0,0.00024997,2]
[321672319,1712369439765,-500.0,0.00024997,2]
[321672320,1712369439775,-499.92982446,0.00024997,2]
[321672321,1712369439784,-32250.6270275,0.00024997,2]
[321672322,1712369439793,-500.0,0.00024997,2]
[321672323,1712369439802,-500.0,0.00024997,2]
[321672324,1712369439811,-560.91510343,0.00024997,2]
[321672325,1712369439820,-500.0,0.00024997,2]
[321672326,1712369439831,-350.21571189,0.00024997,2]
[321672327,1712369439840,-25336.2405004,0.00024997,2]
[321672328,1712369439849,-500.0,0.00024998,2]
[321672329,1712369439859,-289.95834888,0.00024998,2]
[321672330,1712369439868,-530882.96232445,0.00024998,2]
[321672331,1712369439878,-150.01,0.00024999,2]
[321672332,1712369439887,-4257.71862503,0.00024999,2]
[321672333,1712369439896,-500.0,0.00024999,2]
[321672334,1712369439906,-500.0,0.00024999,2]
[321672335,1712369439915,-500.0,0.00024999,2]
[321672336,1712369439926,-500.0,0.00024999,2]
[321672337,1712369439935,-436.97765785,0.00024999,2]
[321672338,1712369439944,-500.0,0.00024999,2]
[321672339,1712369439953,-505.74504946,0.00024999,2]
[321672340,1712369439962,-953.86,0.00024999,2]
[321672341,1712369439971,-953.86,0.00024999,2]
[321672342,1712369439980,-953.86,0.00024999,2]
[321672343,1712369439989,-953.86,0.00024999,2]
[321672344,1712369439998,-953.86,0.00024999,2]
[321672345,1712369440008,-953.86,0.00024999,2]
[321672346,1712369440017,-953.86,0.00024999,2]
[321672347,1712369440027,-953.86,0.00024999,2]
[321672348,1712369440036,-953.86,0.00024999,2]
[321672349,1712369440045,-953.86,0.00024999,2]
[321672350,1712369440055,-953.86,0.00024999,2]
[321672351,1712369440063,-953.86,0.00024999,2]
[321672352,1712369440073,-953.86,0.00024999,2]
[321672353,1712369440083,-953.86,0.00024999,2]
[321672354,1712369440092,-953.86,0.00024999,2]
[321672355,1712369440100,-953.86,0.00024999,2]
[321672356,1712369440110,-953.89106055,0.00024999,2]
[321672357,1712369440119,-368.9390475,0.00024999,2]
[321672358,1712369440128,-500.0,0.00024999,2]
[321672359,1712369440137,-500.0,0.00024999,2]
[321672360,1712369440146,-500.0,0.00024999,2]
[321672361,1712369440155,-500.0,0.00024999,2]
[321672362,1712369440164,-500.0,0.00024999,2]
[321672363,1712369440173,-500.0,0.00024999,2]
[321672364,1712369440182,-500.0,0.00024999,2]
[321672365,1712369440191,-500.0,0.00024999,2]
[321672366,1712369440200,-500.0,0.00024999,2]
[321672367,1712369440209,-500.0,0.00024999,2]
[321672368,1712369440218,-500.0,0.00024999,2]
[321672369,1712369440227,-566.97489406,0.00024999,2]
[321672370,1712369440236,-500.0,0.00024999,2]
[321672371,1712369440245,-500.0,0.00024999,2]
[321672372,1712369440254,-500.0,0.00024999,2]
[321672373,1712369440262,-500.0,0.00024999,2]
[321672374,1712369440272,-500.0,0.00024999,2]
[321672375,1712369440281,-500.0,0.00024999,2]
[321672376,1712369440290,-500.0,0.00024999,2]
[321672377,1712369440299,-500.0,0.00024999,2]
[321672378,1712369440308,-500.0,0.00024999,2]
[321672379,1712369440318,-169.40618809,0.00024999,2]
[321672380,1712369440327,-500.0,0.00024999,2]
[321672381,1712369440337,-500.0,0.00024999,2]
[321672382,1712369440346,-375.43983155,0.00024999,2]
[321672383,1712369440356,-446287.47342591,0.00025,3]
[321672384,1712369440365,-187568.74994014,0.00025,2]
[321672385,1712369440380,-1710018.85341682,0.00025,2]
[321672386,1712369442832,-507.83354568,0.00024996,2]
[321672387,1712369442842,-506.16278453,0.00024996,2]
[321672388,1712369442851,-181.8221233,0.00025,2]
[321672392,1712369445764,-164.89614716,0.0002475,2]
[321672393,1712369445775,-502.67,0.00024899,2]
[321672394,1712369445786,-502.67,0.00024899,2]
[321672395,1712369445796,-502.67,0.00024899,2]
[321672396,1712369445806,-160.37276149,0.000249,2]
[321672397,1712369445817,-155.0,0.00024999,2]
[321672398,1712369445827,-1934.64578513,0.00025,2]
[321672399,1712369445839,-1436.52759672,0.00025,2]
[321672400,1712369445981,-502.67,0.00024996,2]
[321672401,1712369445990,-2736.12715162,0.00025,2]
[321672402,1712369851629,-150.0,0.00019092,2]
[321672403,1712369883116,-150.0,0.0001909,2]
[321672404,1712369883596,-5.0,0.0001909,2]
[321672405,1712369883616,-145.0,0.00019091,2]
[321672406,1712369884013,-150.0,0.00019091,2]
[321672407,1712369885564,-196.94371571,0.00019091,2]
[321672408,1712369886141,-150.0,0.00019091,2]
[321672409,1712369886675,-28.30907056,0.00019091,2]
[321672410,1712369886696,-121.69092944,0.00019092,2]
[321672411,1712370224933,17324.6331345,0.000225,3]
[321672412,1712370307605,188442.40415122,0.00039704,30]
[321672413,1712370365291,1450.0,0.00021,3]
[321672414,1712370367067,1500.0,0.00023,3]
[321672415,1712370435424,15000.0,0.00023,3]
[321672417,1712370609093,192.65554185,0.00023,3]
[321672422,1712370632529,-670.25278627,0.00021932,2]
[321672423,1712370632539,-25.73795768,0.00021933,2]
[321672424,1712370632550,-124.26204232,0.00021933,2]
[321672425,1712370632559,-532.98795768,0.00021934,2]
[321672426,1712370632583,-806.31485,0.00021934,2]
[321672427,1712370632640,-253.43810457,0.00021934,2]
[321672428,1712370632653,-3368.14677374,0.00021934,2]
[321672429,1712370632665,-5092.52463394,0.00021934,2]
[321672430,1712370632674,-296.96,0.00022036,2]
[321672431,1712370632683,-530.55084122,0.00022038,2]
[321672432,1712370632693,-6.7296371,0.00022038,2]
[321672433,1712370632779,-676.52947569,0.00022038,2]
[321672434,1712370632802,-7356.0830312,0.00023,3]
[321672435,1712370632815,-684.71908266,0.00023,3]
[321672436,1712370632829,-493.68515,0.00023,3]
[321672437,1712370632842,-673.90213753,0.00023,3]
[321672438,1712370632855,-463.05,0.00023,3]
[321672441,1712370637770,-709.93442292,0.00023,3]
[321672442,1712370637782,-275.96458678,0.00023,3]
[321672445,1712370638042,-2997.53104952,0.00023,3]
[321672446,1712370638052,-668.23,0.00023906,2]
[321672447,1712370638061,-240.62,0.00023906,2]
[321672448,1712370638070,-1000.0,0.00023991,2]
[321672449,1712370638079,-210.0,0.00024126,2]
[321672450,1712370638088,-296.96,0.000243,2]
[321672451,1712370638097,-155.0,0.00024556,2]
[321672452,1712370638107,-195.0,0.00024658,2]
[321672453,1712370638117,-164.89614716,0.0002475,2]
[321672454,1712370638126,-3000.0,0.0002475,2]
[321672455,1712370638136,-735.7861629,0.000248,2]
[321672456,1712370638146,-500.0,0.000248,2]
[321672457,1712370638155,-2500.0,0.00024896,2]
[321672458,1712370638164,-248.62018927,0.00024896,2]
[321672459,1712370638173,-171.78036031,0.00024896,2]
[321672460,1712370638182,-733.14885421,0.00024896,2]
[321672461,1712370638192,-1000.0,0.00024899,2]
[321672462,1712370638201,-7366.143,0.000249,2]
[321672463,1712370638210,-29616.2333,0.000249,2]
[321672464,1712370638219,-171.78036031,0.000249,2]
[321672465,1712370638228,-962.23656882,0.000249,2]
[321672466,1712370638237,-333.040611,0.00024906,2]
[321672467,1712370638246,-333.040611,0.00024906,2]
[321672468,1712370638255,-333.040611,0.00024906,2]
[321672469,1712370638265,-333.040611,0.00024906,2]
[321672471,1712370638274,-333.040611,0.00024906,2]
[321672473,1712370638284,-333.040611,0.00024906,2]
[321672475,1712370638293,-333.040611,0.00024906,2]
[321672477,1712370638302,-333.040611,0.00024906,2]
[321672479,1712370638311,-333.040611,0.00024906,2]
[321672481,1712370638320,-333.040611,0.00024906,2]
[321672483,1712370638329,-214.0,0.00024931,2]
[321672485,1712370638338,-301.88070953,0.00024981,2]
[321672487,1712370638348,-6521.18838236,0.00024994,2]
[321672489,1712370638357,-222.61196904,0.00024994,2]
[321672490,1712370638366,-157.71282385,0.00024994,2]
[321672491,1712370638375,-158.62772887,0.00024994,2]
[321672492,1712370638385,-396.77748113,0.00024994,2]
[321672493,1712370638394,-341.89657089,0.00024994,2]
[321672494,1712370638403,-1282.12855144,0.00024995,2]
[321672495,1712370638413,-500.0,0.00024995,2]
[321672496,1712370638421,-500.0,0.00024995,2]
[321672497,1712370638431,-500.0,0.00024995,2]
[321672498,1712370638440,-336.45721855,0.00024995,2]
[321672499,1712370638449,-500.0,0.00024995,2]
[321672500,1712370638458,-500.0,0.00024995,2]
[321672501,1712370638467,-500.0,0.00024995,2]
[321672502,1712370638477,-500.0,0.00024995,2]
[321672503,1712370638486,-368.9390475,0.00024995,2]
[321672504,1712370638495,-500.0,0.00024995,2]
[321672505,1712370638504,-500.0,0.00024995,2]
[321672506,1712370638513,-199.6106364,0.00024995,2]
[321672507,1712370638522,-500.0,0.00024995,2]
[321672508,1712370638532,-500.0,0.00024995,2]
[321672509,1712370638541,-500.0,0.00024995,2]
[321672510,1712370638551,-500.0,0.00024995,2]
[321672511,1712370638561,-500.0,0.00024995,2]
[321672512,1712370638570,-500.0,0.00024995,2]
[321672513,1712370638579,-500.0,0.00024995,2]
[321672514,1712370638589,-500.0,0.00024995,2]
[321672515,1712370638598,-500.0,0.00024995,2]
[321672516,1712370638607,-500.0,0.00024995,2]
[321672517,1712370638617,-500.0,0.00024995,2]
[321672518,1712370638626,-500.0,0.00024995,2]
[321672519,1712370638636,-500.0,0.00024995,2]
[321672520,1712370638645,-500.0,0.00024995,2]
[321672521,1712370638653,-500.0,0.00024995,2]
[321672522,1712370638663,-566.97489406,0.00024995,2]
[321672523,1712370638672,-500.0,0.00024995,2]
[321672524,1712370638681,-500.0,0.00024995,2]
[321672525,1712370638691,-500.0,0.00024995,2]
[321672526,1712370638700,-350.21571189,0.00024995,2]
[321672527,1712370638709,-500.0,0.00024995,2]
[321672528,1712370638718,-524.29278363,0.00024995,2]
[321672529,1712370638727,-522.0,0.00024996,2]
[321672530,1712370638736,-446287.47342591,0.00024996,3]
[321672531,1712370638746,-362.44793609,0.00024996,2]
[321672532,1712370638755,-807.10719357,0.00024996,2]
[321672533,1712370638764,-317.39158975,0.00024996,2]
[321672534,1712370638773,-500.0,0.00024996,2]
[321672535,1712370638782,-1488212.33089029,0.00024996,2]
[321672536,1712370638796,-1710018.85341682,0.00024996,2]
[321672537,1712370638813,-1797.86421951,0.00024996,2]
[321672538,1712370638832,-1018.0311035,0.00024996,2]
[321672541,1712370639881,-1034.268095,0.00024996,2]
[321672542,1712370639990,-204.914,0.00024931,2]
[321672543,1712370639999,-143.61099995,0.00024996,2]
[321672544,1712370640155,-301.34,0.00024996,2]
[321672547,1712370643020,-1927.09008602,0.00024996,2]
[321672554,1712370645832,-164.89614716,0.0002475,2]
[321672555,1712370645842,-14726.52385284,0.00024996,2]
[321672557,1712371009732,1042.4188991,0.000251,14]
[321672559,1712371255136,1771.7,0.000225,7]
[321672560,1712371271313,2688.0,0.000225,7]
[321672562,1712371283071,2688.0,0.000225,7]
[321672563,1712371292569,2688.0,0.000225,7]
[321672564,1712371302995,2688.0,0.000225,7]
[321672565,1712371311831,2688.0,0.000225,7]
[321672566,1712371322154,2688.0,0.000225,7]
[321672567,1712371332174,2688.0,0.000225,7]
[321672568,1712371340761,2688.0,0.000225,7]
[321672631,1712371837998,-1245.71392567,0.00021974,2]
[321672632,1712371838008,-670.25278627,0.00021976,2]
[321672633,1712371838017,-1643.00170667,0.00022074,2]
[321672634,1712371838031,-280.61,0.00022099,2]
[321672635,1712371838043,-7847.0704,0.00022178,2]
[321672636,1712371838055,-7911.53653376,0.00023,2]
[321672637,1712371838080,-3210.94892865,0.00023,2]
[321672638,1712371838095,-1011.61754106,0.00023,2]
[321672639,1712371838115,-15045.04751652,0.00023,2]
[321672640,1712371838273,-8898.21927455,0.00023,2]
[321672647,1712371843440,-2093.08869925,0.00023,2]
[321672648,1712371846023,-26873.71677503,0.00023,2]
[321672649,1712371846184,-9668.14682502,0.00023,2]
[321672650,1712371846242,-5895.72528088,0.00023,2]
[321672654,1712372057826,-150.0,0.0002,2]
[321672655,1712372058172,-150.0,0.0002,2]
[321672656,1712372059636,-150.0,0.0002,2]
[321672657,1712372067719,150.0,0.0001725,2]
[321672658,1712372067740,150.0,0.0001725,2]
[321672659,1712372067761,9.02313219,0.0001725,2]
[321672660,1712372070082,150.0,0.00015,2]
[321672661,1712372070103,70.64262003,0.00015,2]
[321672667,1712372177442,1450.0,0.00021,3]
[321672669,1712372772606,150.0,0.0001575,2]
[321672670,1712372772627,150.0,0.0001575,2]
[321672671,1712372772648,150.0,0.0001575,2]
[321672672,1712372772674,115.52609578,0.0001575,2]
[321672682,1712373032282,-393.9,0.00018748,2]
[321672691,1712373032335,-276.35278627,0.00018748,2]
[321672696,1712373032345,-217.55,0.00018749,2]
[321672700,1712373032355,-879.45469111,0.00021463,2]
[321672703,1712373032364,-274.08,0.00021523,2]
[321672704,1712373032373,-354.32321319,0.00022699,2]
[321672705,1712373032391,-2120.29114441,0.00022699,2]
[321672706,1712373032403,-1288.70035845,0.00022699,2]
[321672707,1712373032448,-1285.95328395,0.00022699,2]
[321672708,1712373032457,-3000.0,0.0002277,2]
[321672709,1712373032466,-226.7374602,0.00022998,2]
[321672710,1712373032476,-2145.28263866,0.00022999,2]
[321672711,1712373032503,-32713.98942986,0.00022999,2]
[321672712,1712373032515,-3921.68974662,0.00022999,2]
[321672713,1712373032559,-9970.87551611,0.00022999,2]
[321672714,1712373032571,-1411.26809439,0.00022999,2]
[321672733,1712373038211,-4003.51042446,0.00022999,2]
[321672734,1712373038223,-5662.4578737,0.00022999,2]
[321672735,1712373038234,-7103.53077201,0.00022999,2]
[321672736,1712373038267,-2991.78322966,0.00022999,2]
[321672737,1712373038276,-3719.21684595,0.00023,2]
[321672738,1712373038288,-534.52000002,0.00023,2]
[321672739,1712373038300,-520.33369996,0.00023,2]
[321672740,1712373038430,-52066.88207935,0.00023,2]
[321672741,1712373038440,-1500.0,0.00023,3]
[321672742,1712373038449,-2000.0,0.00023,2]
[321672743,1712373038459,-200.0,0.00023,2]
[321672744,1712373038468,-222.32730151,0.00023,2]
[321672745,1712373038477,-9713.101983,0.00023084,2]
[321672746,1712373038486,-178.81606577,0.000231,6]
[321672747,1712373038496,-2000.0,0.0002323,2]
[321672748,1712373038505,-200.0,0.0002323,2]
[321672749,1712373038514,-1307.25701056,0.00023276,2]
[321672750,1712373038524,-1000.0,0.00023387,2]
[321672751,1712373038533,-2000.0,0.00023462,2]
[321672752,1712373038542,-200.0,0.00023462,2]
[321672753,1712373038554,-444.13,0.00023644,2]
[321672754,1712373038563,-271.62965372,0.00023697,2]
[321672755,1712373038572,-200.0,0.00023697,2]
[321672756,1712373038582,-274.08,0.00023787,2]
[321672757,1712373038591,-23769.4729148,0.00023889,2]
[321672758,1712373038600,-200.0,0.00023934,2]
[321672759,1712373038610,-185496.4573756,0.00023989,2]
[321672760,1712373038619,-155.0,0.000245,2]
[321672761,1712373038628,-500.0,0.00024657,2]
[321672762,1712373038637,-317.39158975,0.00024657,2]
[321672763,1712373038646,-522.16210768,0.00024657,2]
[321672764,1712373038656,-630.47082429,0.00024657,2]
[321672765,1712373038665,-517.48757604,0.00024657,2]
[321672766,1712373038679,-517.43124507,0.00024657,2]
[321672767,1712373038688,-520.00170031,0.00024657,2]
[321672768,1712373038697,-517.99796269,0.00024657,2]
[321672769,1712373038706,-500.0,0.00024657,2]
[321672770,1712373038717,-517.27995016,0.00024657,2]
[321672771,1712373038726,-568.60294991,0.00024657,2]
[321672772,1712373038735,-516.72176236,0.00024657,2]
[321672773,1712373038745,-517.42179136,0.00024657,2]
[321672774,1712373038755,-529.66840473,0.00024657,2]
[321672775,1712373038764,-521.54313506,0.00024657,2]
[321672776,1712373038773,-500.0,0.00024657,2]
[321672777,1712373038782,-500.0,0.00024657,2]
[321672778,1712373038792,-504.04079952,0.00024657,2]
[321672779,1712373038801,-517.51438924,0.00024657,2]
[321672780,1712373038810,-532.30493299,0.00024657,2]
[321672781,1712373038819,-564.24407275,0.00024657,2]
[321672782,1712373038832,-512.18828698,0.00024657,2]
[321672783,1712373038841,-500.0,0.00024657,2]
[321672784,1712373038851,-513.44824149,0.00024657,2]
[321672785,1712373038861,-500.0,0.00024657,2]
[321672786,1712373038870,-559.1532797,0.00024657,2]
[321672787,1712373038879,-513.53932583,0.00024657,2]
[321672788,1712373038888,-311.41819,0.00024657,2]
[321672789,1712373038898,-500.0,0.00024657,2]
[321672790,1712373038907,-531.12558258,0.00024657,2]
[321672791,1712373038916,-510.27959837,0.00024657,2]
[321672792,1712373038926,-538.95120062,0.00024657,2]
[321672793,1712373038935,-519.88307723,0.00024657,2]
[321672794,1712373038944,-500.0,0.00024657,2]
[321672795,1712373038953,-500.0,0.00024657,2]
[321672796,1712373038963,-238.83041997,0.00024657,2]
[321672797,1712373038972,-500.0,0.00024657,2]
[321672798,1712373038981,-304.60140284,0.00024657,2]
[321672799,1712373038991,-500.0,0.00024657,2]
[321672800,1712373039000,-500.0,0.00024657,2]
[321672801,1712373039010,-263.84407698,0.00024657,2]
[321672802,1712373039019,-334.07188547,0.00024657,2]
[321672803,1712373039028,-500.0,0.00024657,2]
[321672804,1712373039037,-500.0,0.00024657,2]
[321672805,1712373039047,-538.89686938,0.00024657,2]
[321672806,1712373039057,-500.0,0.00024657,2]
[321672807,1712373039066,-166.94347458,0.00024657,2]
[321672808,1712373039075,-500.0,0.00024657,2]
[321672809,1712373039084,-500.0,0.00024657,2]
[321672810,1712373039097,-500.0,0.00024657,2]
[321672811,1712373039106,-500.0,0.00024657,2]
[321672812,1712373039115,-500.0,0.00024657,2]
[321672813,1712373039124,-500.0,0.00024657,2]
[321672814,1712373039133,-500.0,0.00024657,2]
[321672815,1712373039142,-880.05,0.00024657,2]
[321672816,1712373039153,-500.0,0.00024657,2]
[321672817,1712373039162,-500.0,0.00024657,2]
[321672818,1712373039171,-514.85146372,0.00024657,2]
[321672819,1712373039180,-500.0,0.00024657,2]
[321672820,1712373039189,-524.04467494,0.00024657,2]
[321672821,1712373039199,-500.0,0.00024657,2]
[321672822,1712373039208,-500.0,0.00024657,2]
[321672823,1712373039217,-500.0,0.00024657,2]
[321672824,1712373039226,-500.0,0.00024657,2]
[321672825,1712373039235,-500.0,0.00024657,2]
[321672826,1712373039244,-529.40479207,0.00024657,2]
[321672827,1712373039254,-508.03981978,0.00024657,2]
[321672828,1712373039263,-500.0,0.00024657,2]
[321672829,1712373039273,-505.03964547,0.00024657,2]
[321672830,1712373039283,-500.0,0.00024657,2]
[321672831,1712373039294,-500.0,0.00024657,2]
[321672832,1712373039303,-500.0,0.00024657,2]
[321672833,1712373039313,-500.0,0.00024657,2]
[321672834,1712373039323,-512.69942998,0.00024657,2]
[321672835,1712373039332,-520.21287322,0.00024657,2]
[321672836,1712373039341,-418.29782823,0.00024657,2]
[321672837,1712373039351,-510.58393104,0.00024657,2]
[321672838,1712373039361,-512.91241241,0.00024657,2]
[321672839,1712373039370,-871.12,0.00024657,2]
[321672840,1712373039380,-315.91126418,0.00024657,2]
[321672841,1712373039389,-500.0,0.00024657,2]
[321672842,1712373039400,-515.71996571,0.00024657,2]
[321672843,1712373039409,-508.81315406,0.00024657,2]
[321672844,1712373039419,-165.40798776,0.0002475,2]
[321672845,1712373039428,-827.1974071,0.000248,2]
[321672846,1712373039438,-873.0,0.000248,2]